fUSD/lending_fUSD_20250809
["ID","MTS","AMOUNT","RATE_DAILY","PERIOD"]
[378152564,1754749870426,-400.0,0.00025205,2]
[378152565,1754749870435,-400.0,0.00025205,2]
[378152566,1754749870445,-400.0,0.00025205,2]
[378152567,1754749870454,-400.0,0.00025205,2]
[378152568,1754749870463,-400.0,0.00025205,2]
[378152569,1754749870473,-400.0,0.00025205,2]
[378152570,1754749870482,-400.0,0.00025205,2]
[378152571,1754749870492,-400.0,0.00025205,2]
[378152572,1754749870501,-400.0,0.00025205,2]
[378152573,1754749870510,-400.0,0.00025205,2]
[378152574,1754749870520,-400.0,0.00025205,2]
[378152575,1754749870530,-400.0,0.00025205,2]
[378152576,1754749870539,-400.0,0.00025205,2]
[378152577,1754749870548,-400.0,0.00025205,2]
[378152578,1754749870557,-400.0,0.00025205,2]
[378152579,1754749870566,-400.0,0.00025205,2]
[378152580,1754749870575,-400.0,0.00025205,2]
[378152581,1754749870585,-400.0,0.00025205,2]
[378152582,1754749870594,-400.0,0.00025205,2]
[378152583,1754749870603,-400.0,0.00025205,2]
[378152584,1754749870613,-400.0,0.00025205,2]
[378152585,1754749870622,-242.22195957,0.00025205,2]
[378152586,1754749870631,-400.0,0.00025205,2]
[378152587,1754749870643,-400.0,0.00025205,2]
[378152588,1754749870653,-400.0,0.00025205,2]
[378152589,1754749870663,-400.0,0.00025205,2]
[378152590,1754749870671,-400.0,0.00025205,2]
[378152591,1754749870680,-436.43,0.00025205,2]
[378152592,1754749870689,-400.0,0.00025205,2]
[378152593,1754749870698,-400.0,0.00025205,2]
[378152594,1754749870707,-400.0,0.00025205,2]
[378152595,1754749870717,-400.0,0.00025205,2]
[378152596,1754749870726,-400.0,0.00025205,2]
[378152597,1754749870735,-400.0,0.00025205,2]
[378152598,1754749870744,-400.0,0.00025205,2]
[378152599,1754749870754,-400.0,0.00025205,2]
[378152600,1754749870763,-400.0,0.00025205,2]
[378152601,1754749870772,-400.0,0.00025205,2]
[378152602,1754749870782,-400.0,0.00025205,2]
[378152603,1754749870791,-400.0,0.00025205,2]
[378152604,1754749870801,-400.0,0.00025205,2]
[378152605,1754749870810,-400.0,0.00025205,2]
[378152606,1754749870820,-515.75948801,0.00025205,2]
[378152607,1754749870829,-545.53,0.00025205,2]
[378152608,1754749870839,-151.47856917,0.00025205,2]
[378152609,1754749870849,-400.0,0.00025205,2]
[378152610,1754749870858,-411.23,0.00025205,2]
[378152611,1754749870867,-400.0,0.00025205,2]
[378152612,1754749870877,-400.0,0.00025205,2]
[378152613,1754749870886,-400.0,0.00025205,2]
[378152614,1754749870895,-400.0,0.00025205,2]
[378152615,1754749870905,-400.0,0.00025205,2]
[378152616,1754749870915,-400.0,0.00025205,2]
[378152617,1754749870924,-274.09175289,0.00025205,2]
[378152618,1754749870936,-400.0,0.00025205,2]
[378152619,1754749870946,-309.26642537,0.00025205,2]
[378152620,1754749870955,-400.0,0.00025205,2]
[378152621,1754749870965,-400.0,0.00025205,2]
[378152622,1754749870974,-296.03793947,0.00025205,2]
[378152623,1754749870984,-400.0,0.00025205,2]
[378152624,1754749870994,-400.0,0.00025205,2]
[378152625,1754749871003,-501.97,0.00025205,2]
[378152626,1754749871013,-400.0,0.00025205,2]
[378152627,1754749871022,-400.0,0.00025205,2]
[378152628,1754749871032,-400.0,0.00025205,2]
[378152629,1754749871042,-400.0,0.00025205,2]
[378152630,1754749871052,-598.7,0.00025205,2]
[378152631,1754749871061,-632.02,0.00025205,2]
[378152632,1754749871071,-400.0,0.00025205,2]
[378152633,1754749871080,-367.68053801,0.00025205,2]
[378152634,1754749871089,-400.0,0.00025205,2]
[378152635,1754749871099,-400.0,0.00025205,2]
[378152636,1754749871110,-400.0,0.00025205,2]
[378152637,1754749871119,-400.0,0.00025205,2]
[378152638,1754749871128,-400.0,0.00025205,2]
[378152639,1754749871138,-400.0,0.00025205,2]
[378152640,1754749871147,-400.0,0.00025205,2]
[378152641,1754749871156,-400.0,0.00025205,2]
[378152642,1754749871167,-400.0,0.00025205,2]
[378152643,1754749871177,-400.0,0.00025205,2]
[378152644,1754749871186,-400.0,0.00025205,2]
[378152645,1754749871195,-400.0,0.00025205,2]
[378152646,1754749871205,-400.0,0.00025205,2]
[378152647,1754749871214,-400.0,0.00025205,2]
[378152648,1754749871224,-400.0,0.00025205,2]
[378152649,1754749871233,-430.37,0.00025205,2]
[378152650,1754749871243,-400.0,0.00025205,2]
[378152651,1754749871252,-527.1,0.00025205,2]
[378152652,1754749871261,-400.0,0.00025205,2]
[378152653,1754749871271,-384.19507494,0.00025205,2]
[378152654,1754749871280,-400.0,0.00025205,2]
[378152655,1754749871290,-400.0,0.00025205,2]
[378152656,1754749871300,-416.31,0.00025205,2]
[378152657,1754749871314,-400.0,0.00025205,2]
[378152658,1754749871323,-400.0,0.00025205,2]
[378152659,1754749871333,-305.6887465,0.00025205,2]
[378152660,1754749871342,-400.0,0.00025205,2]
[378152661,1754749871351,-400.0,0.00025205,2]
[378152662,1754749871361,-519.25,0.00025205,2]
[378152663,1754749871370,-400.0,0.00025205,2]
[378152664,1754749871380,-400.0,0.00025205,2]
[378152665,1754749871390,-400.0,0.00025205,2]
[378152666,1754749871400,-400.0,0.00025205,2]
[378152667,1754749871410,-517.18429316,0.00025205,2]
[378152668,1754749871419,-400.0,0.00025205,2]
[378152669,1754749871428,-400.0,0.00025205,2]
[378152670,1754749871438,-400.0,0.00025205,2]
[378152671,1754749871447,-509.79,0.00025205,2]
[378152672,1754749871456,-400.0,0.00025205,2]
[378152673,1754749871465,-400.0,0.00025205,2]
[378152674,1754749871474,-200.22459342,0.00025205,2]
[378152675,1754749871483,-467.3,0.00025205,2]
[378152676,1754749871493,-400.0,0.00025205,2]
[378152677,1754749871502,-442.93,0.00025205,2]
[378152678,1754749871511,-400.0,0.00025205,2]
[378152679,1754749871520,-400.0,0.00025205,2]
[378152680,1754749871529,-400.0,0.00025205,2]
[378152681,1754749871539,-400.0,0.00025205,2]
[378152682,1754749871548,-400.0,0.00025205,2]
[378152683,1754749871557,-400.0,0.00025205,2]
[378152684,1754749871566,-691.73,0.00025205,2]
[378152685,1754749871575,-400.0,0.00025205,2]
[378152686,1754749871584,-437.7,0.00025205,2]
[378152687,1754749871594,-400.0,0.00025205,2]
[378152688,1754749871603,-400.0,0.00025205,2]
[378152689,1754749871613,-400.0,0.00025205,2]
[378152690,1754749871623,-412.25,0.00025205,2]
[378152691,1754749871633,-400.0,0.00025205,2]
[378152692,1754749871642,-400.0,0.00025205,2]
[378152693,1754749871651,-573.38,0.00025205,2]
[378152694,1754749871662,-400.0,0.00025205,2]
[378152695,1754749871670,-1000.0,0.00025205,2]
[378152696,1754749871679,-322.92294786,0.00025205,2]
[378152697,1754749871690,-447.11,0.00025205,2]
[378152698,1754749871700,-400.0,0.00025205,2]
[378152699,1754749871710,-400.0,0.00025205,2]
[378152700,1754749871720,-400.0,0.00025205,2]
[378152701,1754749871729,-400.0,0.00025205,2]
[378152702,1754749871739,-638.53,0.00025205,2]
[378152703,1754749871748,-400.0,0.00025205,2]
[378152704,1754749871757,-400.0,0.00025205,2]
[378152705,1754749871767,-506.5,0.00025205,2]
[378152706,1754749871777,-400.0,0.00025205,2]
[378152707,1754749871786,-400.0,0.00025205,2]
[378152708,1754749871797,-553.31,0.00025205,2]
[378152709,1754749871807,-400.0,0.00025205,2]
[378152710,1754749871816,-610.75,0.00025205,2]
[378152711,1754749871825,-400.0,0.00025205,2]
[378152712,1754749871835,-400.0,0.00025205,2]
[378152713,1754749871845,-400.0,0.00025205,2]
[378152714,1754749871854,-400.0,0.00025205,2]
[378152715,1754749871863,-400.0,0.00025205,2]
[378152716,1754749871872,-400.0,0.00025205,2]
[378152717,1754749871882,-400.0,0.00025205,2]
[378152718,1754749871891,-400.0,0.00025205,2]
[378152719,1754749871902,-400.0,0.00025205,2]
[378152720,1754749871913,-400.0,0.00025205,2]
[378152721,1754749871922,-722.62,0.00025205,2]
[378152722,1754749871931,-150.02771833,0.00025205,2]
[378152723,1754749871940,-333.45707891,0.00025205,2]
[378152724,1754749871950,-546.76185182,0.00025205,2]
[378152725,1754749871959,-429.87,0.00025205,2]
[378152726,1754749871969,-400.0,0.00025205,2]
[378152727,1754749871979,-400.0,0.00025205,2]
[378152728,1754749871988,-400.0,0.00025205,2]
[378152729,1754749871998,-400.0,0.00025205,2]
[378152730,1754749872007,-693.68,0.00025205,2]
[378152731,1754749872017,-400.0,0.00025205,2]
[378152732,1754749872026,-400.0,0.00025205,2]
[378152733,1754749872035,-458.94,0.00025205,2]
[378152734,1754749872044,-882.37,0.00025205,2]
[378152735,1754749872053,-400.0,0.00025205,2]
[378152736,1754749872063,-215.31309689,0.00025205,2]
[378152737,1754749872073,-400.0,0.00025205,2]
[378152738,1754749872082,-400.0,0.00025205,2]
[378152739,1754749872091,-400.0,0.00025205,2]
[378152740,1754749872101,-400.0,0.00025205,2]
[378152741,1754749872110,-400.0,0.00025205,2]
[378152742,1754749872120,-508.26,0.00025205,2]
[378152743,1754749872129,-462.31,0.00025205,2]
[378152744,1754749872138,-400.0,0.00025205,2]
[378152745,1754749872147,-400.0,0.00025205,2]
[378152746,1754749872157,-427.88,0.00025205,2]
[378152747,1754749872167,-469.3834694,0.00025205,2]
[378152748,1754749872176,-400.0,0.00025205,2]
[378152749,1754749872185,-305.18844542,0.00025205,2]
[378152750,1754749872195,-400.0,0.00025205,2]
[378152751,1754749872204,-400.0,0.00025205,2]
[378152752,1754749872215,-400.0,0.00025205,2]
[378152753,1754749872225,-400.0,0.00025205,2]
[378152754,1754749872235,-481.38,0.00025205,2]
[378152755,1754749872243,-400.0,0.00025205,2]
[378152756,1754749872253,-434.07,0.00025205,2]
[378152757,1754749872263,-400.0,0.00025205,2]
[378152758,1754749872272,-400.0,0.00025205,2]
[378152759,1754749872281,-400.0,0.00025205,2]
[378152760,1754749872290,-400.0,0.00025205,2]
[378152761,1754749872300,-400.0,0.00025205,2]
[378152762,1754749872313,-400.0,0.00025205,2]
[378152763,1754749872323,-400.0,0.00025205,2]
[378152764,1754749872332,-400.0,0.00025205,2]
[378152765,1754749872342,-400.0,0.00025205,2]
[378152766,1754749872351,-400.0,0.00025205,2]
[378152767,1754749872361,-400.0,0.00025205,2]
[378152768,1754749872371,-400.0,0.00025205,2]
[378152769,1754749872381,-400.0,0.00025205,2]
[378152770,1754749872390,-400.0,0.00025205,2]
[378152771,1754749872400,-400.0,0.00025205,2]
[378152772,1754749872410,-400.0,0.00025205,2]
[378152773,1754749872420,-589.71,0.00025205,2]
[378152774,1754749872429,-400.0,0.00025205,2]
[378152775,1754749872439,-724.16,0.00025205,2]
[378152776,1754749872448,-400.0,0.00025205,2]
[378152777,1754749872457,-400.0,0.00025205,2]
[378152778,1754749872467,-400.0,0.00025205,2]
[378152779,1754749872476,-400.0,0.00025205,2]
[378152780,1754749872485,-660.14,0.00025205,2]
[378152781,1754749872495,-400.0,0.00025205,2]
[378152782,1754749872505,-400.0,0.00025205,2]
[378152783,1754749872514,-500.79,0.00025205,2]
[378152784,1754749872523,-699.91,0.00025205,2]
[378152785,1754749872532,-400.0,0.00025205,2]
[378152786,1754749872542,-400.0,0.00025205,2]
[378152787,1754749872551,-400.0,0.00025205,2]
[378152788,1754749872561,-400.0,0.00025205,2]
[378152789,1754749872570,-154.630946,0.00025205,2]
[378152790,1754749872579,-400.0,0.00025205,2]
[378152791,1754749872588,-231.03182205,0.00025205,2]
[378152792,1754749872598,-400.0,0.00025205,2]
[378152793,1754749872607,-400.0,0.00025205,2]
[378152794,1754749872616,-400.0,0.00025205,2]
[378152795,1754749872626,-634.48,0.00025205,2]
[378152796,1754749872636,-438.77,0.00025205,2]
[378152797,1754749872646,-400.0,0.00025205,2]
[378152798,1754749872655,-207.02301246,0.00025205,2]
[378152799,1754749872666,-400.0,0.00025205,2]
[378152800,1754749872675,-400.0,0.00025205,2]
[378152801,1754749872687,-522.26,0.00025205,2]
[378152802,1754749872696,-400.0,0.00025205,2]
[378152803,1754749872707,-487.7289285,0.00025205,2]
[378152804,1754749872718,-438.76,0.00025205,2]
[378152805,1754749872727,-549.26,0.00025205,2]
[378152806,1754749872736,-400.0,0.00025205,2]
[378152807,1754749872745,-404.35,0.00025205,2]
[378152808,1754749872755,-400.0,0.00025205,2]
[378152809,1754749872764,-400.0,0.00025205,2]
[378152810,1754749872773,-400.0,0.00025205,2]
[378152811,1754749872783,-400.0,0.00025205,2]
[378152812,1754749872792,-548.28,0.00025205,2]
[378152813,1754749872802,-400.0,0.00025205,2]
[378152814,1754749872812,-400.0,0.00025205,2]
[378152815,1754749872821,-400.0,0.00025205,2]
[378152816,1754749872831,-2275.65,0.00025205,2]
[378152817,1754749872840,-617.32,0.00025205,2]
[378152818,1754749872849,-692.69,0.00025205,2]
[378152819,1754749872858,-400.0,0.00025205,2]
[378152820,1754749872867,-400.0,0.00025205,2]
[378152821,1754749872876,-954.1,0.00025205,2]
[378152822,1754749872886,-681.88,0.00025205,2]
[378152823,1754749872895,-1283.73,0.00025205,2]
[378152824,1754749872904,-400.0,0.00025205,2]
[378152825,1754749872914,-400.0,0.00025205,2]
[378152826,1754749872923,-400.0,0.00025205,2]
[378152827,1754749872933,-427.56,0.00025205,2]
[378152828,1754749872944,-400.0,0.00025205,2]
[378152829,1754749872954,-530.96,0.00025205,2]
[378152830,1754749872963,-1001.43,0.00025205,2]
[378152831,1754749872973,-412.83,0.00025205,2]
[378152832,1754749872982,-400.0,0.00025205,2]
[378152833,1754749872991,-400.0,0.00025205,2]
[378152834,1754749873001,-400.0,0.00025205,2]
[378152835,1754749873010,-520.89,0.00025205,2]
[378152836,1754749873020,-400.0,0.00025205,2]
[378152837,1754749873029,-718.85,0.00025205,2]
[378152838,1754749873039,-400.0,0.00025205,2]
[378152839,1754749873048,-400.0,0.00025205,2]
[378152840,1754749873058,-400.0,0.00025205,2]
[378152841,1754749873067,-696.23,0.00025205,2]
[378152842,1754749873076,-400.0,0.00025205,2]
[378152843,1754749873086,-535.28,0.00025205,2]
[378152844,1754749873095,-400.0,0.00025205,2]
[378152845,1754749873105,-400.0,0.00025205,2]
[378152846,1754749873114,-583.04,0.00025205,2]
[378152847,1754749873123,-400.0,0.00025205,2]
[378152848,1754749873133,-677.31,0.00025205,2]
[378152849,1754749873143,-450.0,0.00025205,2]
[378152850,1754749873153,-400.0,0.00025205,2]
[378152851,1754749873164,-621.83,0.00025205,2]
[378152852,1754749873173,-621.54,0.00025205,2]
[378152853,1754749873184,-400.0,0.00025205,2]
[378152854,1754749873197,-546.6,0.00025205,2]
[378152855,1754749873208,-533.49,0.00025205,2]
[378152856,1754749873217,-400.0,0.00025205,2]
[378152857,1754749873228,-705.0,0.00025205,2]
[378152858,1754749873238,-400.0,0.00025205,2]
[378152859,1754749873248,-724.0,0.00025205,2]
[378152860,1754749873258,-400.0,0.00025205,2]
[378152861,1754749873267,-153.631749,0.00025205,2]
[378152862,1754749873278,-400.0,0.00025205,2]
[378152863,1754749873288,-400.0,0.00025205,2]
[378152864,1754749873297,-400.0,0.00025205,2]
[378152865,1754749873310,-610.92,0.00025205,2]
[378152866,1754749873320,-424.6,0.00025205,2]
[378152867,1754749873330,-400.0,0.00025205,2]
[378152868,1754749873340,-400.0,0.00025205,2]
[378152869,1754749873351,-507.83,0.00025205,2]
[378152870,1754749873360,-400.0,0.00025205,2]
[378152871,1754749873370,-400.0,0.00025205,2]
[378152872,1754749873380,-589.74,0.00025205,2]
[378152873,1754749873390,-400.0,0.00025205,2]
[378152874,1754749873400,-400.0,0.00025205,2]
[378152875,1754749873411,-579.39,0.00025205,2]
[378152876,1754749873421,-970.0,0.00025205,2]
[378152877,1754749873430,-400.0,0.00025205,2]
[378152878,1754749873440,-400.0,0.00025205,2]
[378152879,1754749873451,-400.0,0.00025205,2]
[378152880,1754749873460,-519.71,0.00025205,2]
[378152881,1754749873469,-400.0,0.00025205,2]
[378152882,1754749873479,-400.0,0.00025205,2]
[378152883,1754749873489,-802.61,0.00025205,2]
[378152884,1754749873498,-400.0,0.00025205,2]
[378152885,1754749873507,-677.07,0.00025205,2]
[378152886,1754749873517,-400.0,0.00025205,2]
[378152887,1754749873526,-1787.06,0.00025205,2]
[378152888,1754749873536,-494.62,0.00025205,2]
[378152889,1754749873546,-400.0,0.00025205,2]
[378152890,1754749873555,-400.0,0.00025205,2]
[378152891,1754749873565,-1000.0,0.00025205,2]
[378152892,1754749873575,-701.62,0.00025205,2]
[378152893,1754749873584,-400.0,0.00025205,2]
[378152894,1754749873593,-400.0,0.00025205,2]
[378152895,1754749873602,-400.0,0.00025205,2]
[378152896,1754749873612,-400.0,0.00025205,2]
[378152897,1754749873622,-400.0,0.00025205,2]
[378152898,1754749873632,-624.19,0.00025205,2]
[378152899,1754749873641,-400.0,0.00025205,2]
[378152900,1754749873651,-483.14,0.00025205,2]
[378152901,1754749873662,-400.0,0.00025205,2]
[378152902,1754749873671,-400.0,0.00025205,2]
[378152903,1754749873681,-400.0,0.00025205,2]
[378152904,1754749873691,-400.0,0.00025205,2]
[378152905,1754749873701,-400.0,0.00025205,2]
[378152906,1754749873711,-400.0,0.00025205,2]
[378152907,1754749873721,-400.0,0.00025205,2]
[378152908,1754749873731,-3850.95,0.00025205,2]
[378152909,1754749873741,-400.0,0.00025205,2]
[378152910,1754749873751,-400.0,0.00025205,2]
[378152911,1754749873761,-400.0,0.00025205,2]
[378152912,1754749873771,-400.0,0.00025205,2]
[378152913,1754749873781,-400.0,0.00025205,2]
[378152914,1754749873791,-400.0,0.00025205,2]
[378152915,1754749873801,-625.86,0.00025205,2]
[378152916,1754749873811,-457.61,0.00025205,2]
[378152917,1754749873820,-632.69,0.00025205,2]
[378152918,1754749873831,-400.0,0.00025205,2]
[378152919,1754749873841,-514.34,0.00025205,2]
[378152920,1754749873851,-400.0,0.00025205,2]
[378152921,1754749873861,-400.0,0.00025205,2]
[378152922,1754749873870,-400.0,0.00025205,2]
[378152923,1754749873880,-400.0,0.00025205,2]
[378152924,1754749873889,-614.84,0.00025205,2]
[378152925,1754749873899,-1193.7,0.00025205,2]
[378152926,1754749873909,-896.2,0.00025205,2]
[378152927,1754749873919,-400.0,0.00025205,2]
[378152928,1754749873929,-176.88316976,0.00025205,2]
[378152929,1754749873938,-1228.24,0.00025205,2]
[378152930,1754749873948,-527.23,0.00025205,2]
[378152931,1754749873958,-752.81,0.00025205,2]
[378152932,1754749873968,-400.0,0.00025205,2]
[378152933,1754749873978,-400.0,0.00025205,2]
[378152934,1754749873987,-400.0,0.00025205,2]
[378152935,1754749873997,-680.66,0.00025205,2]
[378152936,1754749874008,-1359.96,0.00025205,2]
[378152937,1754749874018,-548.22,0.00025205,2]
[378152938,1754749874027,-400.0,0.00025205,2]
[378152939,1754749874039,-400.0,0.00025205,2]
[378152940,1754749874049,-400.0,0.00025205,2]
[378152941,1754749874059,-400.0,0.00025205,2]
[378152942,1754749874068,-400.0,0.00025205,2]
[378152943,1754749874078,-674.43,0.00025205,2]
[378152944,1754749874088,-400.0,0.00025205,2]
[378152945,1754749874098,-400.0,0.00025205,2]
[378152946,1754749874108,-400.0,0.00025205,2]
[378152947,1754749874118,-811.15,0.00025205,2]
[378152948,1754749874128,-400.0,0.00025205,2]
[378152949,1754749874139,-734.05,0.00025205,2]
[378152950,1754749874148,-434.7,0.00025205,2]
[378152951,1754749874159,-516.44,0.00025205,2]
[378152952,1754749874169,-292.42479035,0.00025205,2]
[378152953,1754749874179,-400.0,0.00025205,2]
[378152954,1754749874189,-679.49,0.00025205,2]
[378152955,1754749874199,-730.64,0.00025205,2]
[378152956,1754749874209,-519.26,0.00025205,2]
[378152957,1754749874219,-400.0,0.00025205,2]
[378152958,1754749874229,-400.0,0.00025205,2]
[378152959,1754749874239,-755.22,0.00025205,2]
[378152960,1754749874249,-454.99,0.00025205,2]
[378152961,1754749874259,-698.76,0.00025205,2]
[378152962,1754749874269,-400.0,0.00025205,2]
[378152963,1754749874280,-446.65,0.00025205,2]
[378152964,1754749874290,-534.6,0.00025205,2]
[378152965,1754749874300,-649.14,0.00025205,2]
[378152966,1754749874313,-400.0,0.00025205,2]
[378152967,1754749874324,-595.22,0.00025205,2]
[378152968,1754749874334,-692.72,0.00025205,2]
[378152969,1754749874344,-400.0,0.00025205,2]
[378152970,1754749874355,-648.65,0.00025205,2]
[378152971,1754749874365,-400.0,0.00025205,2]
[378152972,1754749874375,-535.46,0.00025205,2]
[378152973,1754749874386,-634.42,0.00025205,2]
[378152974,1754749874396,-1408.11,0.00025205,2]
[378152975,1754749874406,-680.88,0.00025205,2]
[378152976,1754749874416,-2400.15,0.00025205,2]
[378152977,1754749874426,-622.31,0.00025205,2]
[378152978,1754749874436,-428.71,0.00025205,2]
[378152979,1754749874446,-400.0,0.00025205,2]
[378152980,1754749874456,-182.51273976,0.00025205,2]
[378152981,1754749874467,-674.5,0.00025205,2]
[378152982,1754749874477,-414.25,0.00025205,2]
[378152983,1754749874487,-400.0,0.00025205,2]
[378152984,1754749874497,-826.8,0.00025205,2]
[378152985,1754749874507,-845.457293,0.00025205,2]
[378152986,1754749874518,-400.0,0.00025205,2]
[378152987,1754749874529,-400.0,0.00025205,2]
[378152988,1754749874539,-400.0,0.00025205,2]
[378152989,1754749874549,-400.0,0.00025205,2]
[378152990,1754749874560,-739.61,0.00025205,2]
[378152991,1754749874571,-400.0,0.00025205,2]
[378152992,1754749874581,-400.0,0.00025205,2]
[378152993,1754749874592,-480.61,0.00025205,2]
[378152994,1754749874603,-665.23,0.00025205,2]
[378152995,1754749874614,-400.0,0.00025205,2]
[378152996,1754749874624,-1050.91,0.00025205,2]
[378152997,1754749874636,-400.0,0.00025205,2]
[378152998,1754749874646,-5194.46,0.00025205,2]
[378152999,1754749874656,-453.79,0.00025205,2]
[378153000,1754749874667,-400.0,0.00025205,2]
[378153001,1754749874677,-2643.65,0.00025205,2]
[378153002,1754749874687,-514.79,0.00025205,2]
[378153003,1754749874698,-400.0,0.00025205,2]
[378153004,1754749874708,-781.1,0.00025205,2]
[378153005,1754749874719,-660.2,0.00025205,2]
[378153006,1754749874728,-400.0,0.00025205,2]
[378153007,1754749874739,-411.25,0.00025205,2]
[378153008,1754749874749,-791.8,0.00025205,2]
[378153009,1754749874759,-867.83,0.00025205,2]
[378153010,1754749874772,-885.16,0.00025205,2]
[378153011,1754749874782,-400.0,0.00025205,2]
[378153012,1754749874792,-400.0,0.00025205,2]
[378153013,1754749874802,-438.2,0.00025205,2]
[378153014,1754749874812,-587.79,0.00025205,2]
[378153015,1754749874822,-400.0,0.00025205,2]
[378153016,1754749874833,-461.65,0.00025205,2]
[378153017,1754749874843,-341.27313495,0.00025205,2]
[378153018,1754749874853,-400.0,0.00025205,2]
[378153019,1754749874863,-825.54,0.00025205,2]
[378153020,1754749874873,-400.0,0.00025205,2]
[378153021,1754749874883,-925.09,0.00025205,2]
[378153022,1754749874892,-445.92,0.00025205,2]
[378153023,1754749874903,-459.73,0.00025205,2]
[378153024,1754749874913,-650.65,0.00025205,2]
[378153025,1754749874923,-400.0,0.00025205,2]
[378153026,1754749874933,-513.27,0.00025205,2]
[378153027,1754749874944,-592.16,0.00025205,2]
[378153028,1754749874953,-400.0,0.00025205,2]
[378153029,1754749874963,-400.0,0.00025205,2]
[378153030,1754749874973,-2647.75,0.00025205,2]
[378153031,1754749874982,-400.0,0.00025205,2]
[378153032,1754749874992,-561.02,0.00025205,2]
[378153033,1754749875003,-400.0,0.00025205,2]
[378153034,1754749875012,-462.18,0.00025205,2]
[378153035,1754749875022,-215.43,0.00025205,2]
[378153036,1754749875032,-957.64,0.00025205,2]
[378153037,1754749875042,-400.0,0.00025205,2]
[378153038,1754749875052,-400.0,0.00025205,2]
[378153039,1754749875062,-977.43,0.00025205,2]
[378153040,1754749875072,-671.66,0.00025205,2]
[378153041,1754749875082,-400.0,0.00025205,2]
[378153042,1754749875092,-802.08,0.00025205,2]
[378153043,1754749875102,-420.52,0.00025205,2]
[378153044,1754749875112,-400.0,0.00025205,2]
[378153045,1754749875121,-400.0,0.00025205,2]
[378153046,1754749875132,-1340.24,0.00025205,2]
[378153047,1754749875142,-400.0,0.00025205,2]
[378153048,1754749875152,-400.0,0.00025205,2]
[378153049,1754749875162,-672.14,0.00025205,2]
[378153050,1754749875172,-400.0,0.00025205,2]
[378153051,1754749875182,-400.0,0.00025205,2]
[378153052,1754749875192,-736.93,0.00025205,2]
[378153053,1754749875202,-1990.37,0.00025205,2]
[378153054,1754749875212,-400.0,0.00025205,2]
[378153055,1754749875222,-400.0,0.00025205,2]
[378153056,1754749875231,-400.0,0.00025205,2]
[378153057,1754749875242,-400.0,0.00025205,2]
[378153058,1754749875252,-591.83,0.00025205,2]
[378153059,1754749875262,-815.55,0.00025205,2]
[378153060,1754749875271,-508.54711981,0.00025205,2]
[378153061,1754749875282,-400.0,0.00025205,2]
[378153062,1754749875292,-493.74,0.00025205,2]
[378153063,1754749875302,-400.86,0.00025205,2]